[Event "44th Chess Olympiad Women 2022"]
[Site "Chennai"]
[Date "2022.08.02"]
[Round "5.60"]
[White "Godoy Yolanda"]
[Black "Marochkina, Nadezhda Valerevna"]
[Result "0-1"]
[ECO "B11"]
[WhiteElo "1219"]
[BlackElo "1687"]
[Annotator "NA RC COMBH"]
[PlyCount "92"]
[EventDate "2022.07.29"]
[EventType "team-tourn"]
[EventCountry "IND"]
[SourceTitle "playchess.com"]
[Source "ChessBase"]
[SourceQuality "1"]
[WhiteTeam "Honduras"]
[BlackTeam "Senegal"]
[WhiteTeamCountry "HON"]
[BlackTeamCountry "SEN"]
[TimeControl "40/5400+30:1800+30"]

1. e4 {[%emt 0:00:30]} c6 {[%emt 0:00:03]} 2. Nf3 {[%emt 0:01:33]} d5 {[%emt 0:00:14]} 3. Nc3 {[%emt 0:02:52]} Nf6 {[%emt 0:01:32]} 4. d3 {[%emt 0:00:51]} Bg4 {[%emt 0:02:49]} 5. Bg5 {[%emt 0:10:15]} Nbd7 {[%emt 0:02:42]} 6. Bxf6 {[%emt 0:01:51]} Nxf6 {[%emt 0:00:23]} 7. h3 {[%emt 0:08:20]} Bh5 {[%emt 0:00:33]} 8. Be2 {[%emt 0:03:36]} e6 {[%emt 0:00:32]} 9. a3 {[%emt 0:12:41]} b5 {[%emt 0:09:51]} 10. b4 {[%emt 0:01:52]} a5 {[%emt 0:02:04]} 11. O-O {[%emt 0:08:00]} axb4 {[%emt 0:00:30]} 12. axb4 {[%emt 0:05:04]} Bxb4 {[%emt 0:02:44]} 13. Rxa8 {[%emt 0:03:08]} Qxa8 {[%emt 0:01:45]} 14. Nb1 {[%emt 0:01:05]} O-O {[%emt 0:01:45]} 15. e5 {[%emt 0:04:00]} Nd7 {[%emt 0:00:53]} 16. d4 {[%emt 0:07:46]} Qa5 {[%emt 0:06:32]} 17. Qd3 {[%emt 0:00:00]} Rb8 {[%emt 0:09:00]} 18. Ng5 {[%emt 0:03:29]} Bg6 {[%emt 0:00:28]} 19. Qf3 {[%emt 0:04:10]} h6 {[%emt 0:00:37]} 20. Bd3 {[%emt 0:02:54]} hxg5 {[%emt 0:01:33]} 21. Bxg6 {[%emt 0:01:59]} fxg6 {[%emt 0:00:08]} 22. Rd1 {[%emt 0:04:39]} Qd8 {[%emt 0:04:46]} 23. Qd3 {[%emt 0:00:25]} Qe8 {[%emt 0:00:49]} 24. Qf3 {[%emt 0:00:19]} Qf7 {[%emt 0:00:47]} 25. c3 {[%emt 0:00:20]} Qxf3 {[%emt 0:00:44]} 26. gxf3 {[%emt 0:00:10]} Be7 {[%emt 0:00:36]} 27. Nd2 {[%emt 0:00:11]} c5 {[%emt 0:00:59]} 28. dxc5 {[%emt 0:00:08]} Nxc5 {[%emt 0:00:44]} 29. Ra1 {[%emt 0:01:39]} Na4 {[%emt 0:00:26]} 30. Rc1 {[%emt 0:00:30]} Rc8 {[%emt 0:00:18]} 31. Nb1 {[%emt 0:00:12]} b4 {[%emt 0:00:33]} 32. Nd2 {[%emt 0:00:16]} bxc3 {[%emt 0:00:22]} 33. Nb3 {[%emt 0:00:55]} Kf7 {[%emt 0:03:37]} 34. Ra1 {[%emt 0:00:33]} Nc5 {[%emt 0:01:10]} 35. Nc1 {[%emt 0:00:23]} d4 {[%emt 0:00:36]} 36. Ne2 {[%emt 0:01:28]} d3 {[%emt 0:01:10]} 37. Nxc3 {[%emt 0:00:27]} Nb3 {[%emt 0:00:07]} 38. Rd1 {[%emt 0:01:44]} Rxc3 {[%emt 0:00:03]} 39. Rb1 {[%emt 0:01:16]} d2 {[%emt 0:00:09]} 40. Rd1 {[%emt 0:00:58]} Rc1 {[%emt 0:00:01]} 41. Rxc1 {[%emt 0:00:12]} dxc1=Q+ {[%emt 0:00:08]} 42. Kg2 {[%emt 0:08:49]} Nd2 {[%emt 0:00:52]} 43. Kh2 {[%emt 0:20:18]} Nxf3+ {[%emt 0:00:52]} 44. Kg2 {[%emt 0:03:25]} Nh4+ {[%emt 0:00:09]} 45. Kh2 {[%emt 0:03:42]} Qf1 {[%emt 0:00:26]} 46. Kg3 {[%emt 0:02:36]} Qg2# {[%emt 0:00:06]} 0-1

[Event "44th Chess Olympiad Women 2022"]
[Site "Chennai"]
[Date "2022.08.02"]
[Round "5.61"]
[White "Bantiwalu, Aster Melake"]
[Black "Elshalom Essayas Berhane"]
[Result "1-0"]
[ECO "B30"]
[WhiteElo "1425"]
[BlackElo "1481"]
[Annotator "NA RC COMBH"]
[PlyCount "149"]
[EventDate "2022.07.29"]
[EventType "team-tourn"]
[EventCountry "IND"]
[SourceTitle "playchess.com"]
[Source "ChessBase"]
[SourceQuality "1"]
[WhiteTeam "Ethiopia"]
[BlackTeam "Eritrea"]
[WhiteTeamCountry "ETH"]
[BlackTeamCountry "ERI"]
[TimeControl "40/5400+30:1800+30"]

1. e4 {[%emt 0:00:36]} c5 {[%emt 0:00:06]} 2. Nf3 {[%emt 0:00:19]} Nc6 {[%emt 0:00:15]} 3. Bc4 {[%emt 0:00:47]} e5 {[%emt 0:00:15]} 4. d3 {[%emt 0:00:26]} h6 {[%emt 0:00:34]} 5. Nc3 {[%emt 0:00:46]} Nf6 {[%emt 0:00:42]} 6. a3 {[%emt 0:00:54]} Be7 {[%emt 0:02:18]} 7. Be3 {[%emt 0:01:00]} d6 {[%emt 0:01:42]} 8. h3 {[%emt 0:00:10]} O-O {[%emt 0:02:02]} 9. O-O {[%emt 0:00:45]} Bd7 {[%emt 0:04:15]} 10. Qd2 {[%emt 0:01:05]} Nd4 {[%emt 0:01:15]} 11. Bxd4 {[%emt 0:01:18]} cxd4 {[%emt 0:00:40]} 12. Ne2 {[%emt 0:01:16]} Qc8 {[%emt 0:04:44]} 13. Ng3 {[%emt 0:03:10]} Qc7 {[%emt 0:02:02]} 14. Bb3 {[%emt 0:00:55]} Rac8 {[%emt 0:02:16]} 15. Rac1 {[%emt 0:00:39]} Qb6 {[%emt 0:01:03]} 16. Rfe1 {[%emt 0:05:19]} a5 {[%emt 0:01:18]} 17. Rb1 {[%emt 0:01:23]} Rc7 {[%emt 0:02:25]} 18. Rec1 {[%emt 0:01:50]} Rfc8 {[%emt 0:01:20]} 19. Qd1 {[%emt 0:03:18]} Rc5 {[%emt 0:04:11]} 20. Nd2 {[%emt 0:01:37]} a4 {[%emt 0:01:59]} 21. Bc4 {[%emt 0:01:08]} Qc7 {[%emt 0:01:09]} 22. b4 {[%emt 0:02:03]} axb3 {[%emt 0:00:29]} 23. Bxb3 {[%emt 0:00:06]} d5 {[%emt 0:01:14]} 24. Qf3 {[%emt 0:03:08]} Be6 {[%emt 0:03:38]} 25. exd5 {[%emt 0:02:57]} Nxd5 {[%emt 0:05:30]} 26. Bc4 {[%emt 0:03:54]} Bg5 {[%emt 0:10:18]} 27. Nge4 {[%emt 0:04:42]} Bxd2 {[%emt 0:05:03]} 28. Nxd2 {[%emt 0:00:08]} Nb6 {[%emt 0:02:07]} 29. Bxe6 {[%emt 0:03:03]} fxe6 {[%emt 0:00:13]} 30. Nc4 {[%emt 0:01:03]} Rf8 {[%emt 0:01:05]} 31. Qe4 {[%emt 0:00:45]} Rf4 {[%emt 0:00:27]} 32. Qg6 {[%emt 0:00:15]} Nxc4 {[%emt 0:03:30]} 33. dxc4 {[%emt 0:00:30]} Qc6 {[%emt 0:01:35]} 34. Rb4 {[%emt 0:01:19]} Rxc4 {[%emt 0:00:39]} 35. Rcb1 {[%emt 0:01:10]} Rxb4 {[%emt 0:02:12]} 36. Rxb4 {[%emt 0:00:18]} Rf6 {[%emt 0:01:22]} 37. Qd3 {[%emt 0:00:58]} Rf8 {[%emt 0:02:27]} 38. Qb3 {[%emt 0:00:27]} Qd5 {[%emt 0:17:32]} 39. Qxd5 {[%emt 0:02:37]} exd5 {[%emt 0:00:10]} 40. Rxb7 {[%emt 0:00:05]} Rc8 {[%emt 0:00:37]} 41. Rb2 {[%emt 0:30:05]} Rc3 {[%emt 0:33:37]} 42. Ra2 {[%emt 0:00:42]} d3 {[%emt 0:02:24]} 43. cxd3 {[%emt 0:01:03]} Rxd3 {[%emt 0:00:09]} 44. f3 {[%emt 0:00:33]} Kf8 {[%emt 0:03:07]} 45. a4 {[%emt 0:01:17]} Rb3 {[%emt 0:00:45]} 46. a5 {[%emt 0:00:12]} Rb8 {[%emt 0:00:30]} 47. a6 {[%emt 0:00:38]} Ra8 {[%emt 0:00:20]} 48. Ra5 {[%emt 0:00:42]} d4 {[%emt 0:00:56]} 49. Kf2 {[%emt 0:00:18]} Kf7 {[%emt 0:02:11]} 50. Ke2 {[%emt 0:00:07]} Ke6 {[%emt 0:01:43]} 51. g4 {[%emt 0:01:14]} Kd6 {[%emt 0:02:20]} 52. Kd3 {[%emt 0:00:09]} Kc6 {[%emt 0:01:15]} 53. Rxe5 {[%emt 0:00:24]} Kd7 {[%emt 0:00:00]} 54. Ra5 {[%emt 0:00:00]} Kc6 {[%emt 0:00:00]} 55. Kxd4 {[%emt 0:00:00]} Kb6 {[%emt 0:00:00]} 56. Ra3 {[%emt 0:00:00]} Ka7 {[%emt 0:00:00]} 57. Ke5 {[%emt 0:00:00]} Rf8 {[%emt 0:00:00]} 58. h4 {[%emt 0:00:00]} h5 {[%emt 0:00:00]} 59. g5 {[%emt 0:00:00]} g6 {[%emt 0:00:00]} 60. f4 {[%emt 0:00:00]} Rf5+ {[%emt 0:00:00]} 61. Ke4 {[%emt 0:00:00]} Ka8 {[%emt 0:00:00]} 62. Rd3 {[%emt 0:00:00]} Rb5 {[%emt 0:00:00]} 63. Rd6 {[%emt 0:00:00]} Rb4+ {[%emt 0:00:00]} 64. Ke5 {[%emt 0:00:00]} Rb5+ {[%emt 0:00:00]} 65. Kf6 {[%emt 0:00:00]} Rf5+ {[%emt 0:00:00]} 66. Kxg6 {[%emt 0:00:00]} Rxf4 {[%emt 0:00:00]} 67. Kxh5 {[%emt 0:00:00]} Ka7 {[%emt 0:00:00]} 68. g6 {[%emt 0:00:00]} Rf2 {[%emt 0:00:00]} 69. Kh6 {[%emt 0:00:00]} Rh2 {[%emt 0:00:00]} 70. h5 {[%emt 0:00:00]} Re2 {[%emt 0:00:00]} 71. g7 {[%emt 0:00:00]} Re8 {[%emt 0:00:00]} 72. Kh7 {[%emt 0:00:00]} Re7 {[%emt 0:00:00]} 73. Kh8 {[%emt 0:00:00]} Rf7 {[%emt 0:01:52]} 74. g8=Q {[%emt 0:01:03]} Rf8 {[%emt 0:00:09]} 75. Rd7+ {[%emt 0:00:00]} 1-0

[Event "44th Chess Olympiad Women 2022"]
[Site "Chennai"]
[Date "2022.08.02"]
[Round "5.62"]
[White "Nan M K Khine Hlyan"]
[Black "Prasad, Tanvi"]
[Result "1/2-1/2"]
[ECO "C48"]
[WhiteElo "1979"]
[BlackElo "1165"]
[Annotator "NA RC"]
[PlyCount "43"]
[EventDate "2022.07.29"]
[EventType "team-tourn"]
[EventCountry "IND"]
[SourceTitle "playchess.com"]
[Source "ChessBase"]
[SourceQuality "1"]
[WhiteTeam "Myanmar"]
[BlackTeam "Fiji"]
[WhiteTeamCountry "MYA"]
[BlackTeamCountry "FIJ"]
[TimeControl "40/5400+30:1800+30"]

1. e4 {[%emt 0:00:09]} e5 {[%emt 0:00:04]} 2. Nf3 {[%emt 0:00:11]} Nf6 {[%emt 0:00:12]} 3. Nc3 {[%emt 0:00:56]} Nc6 {[%emt 0:00:06]} 4. Bb5 {[%emt 0:00:47]} Bc5 {[%emt 0:00:41]} 5. d3 {[%emt 0:03:06]} d6 {[%emt 0:00:28]} 6. Bg5 {[%emt 0:07:21]} h6 {[%emt 0:00:54]} 7. Bh4 {[%emt 0:03:53]} Bd7 {[%emt 0:01:25]} 8. Nd5 {[%emt 0:01:09]} g5 {[%emt 0:04:13]} 9. Bg3 {[%emt 0:01:17]} Nxd5 {[%emt 0:02:06]} 10. exd5 {[%emt 0:00:28]} Ne7 {[%emt 0:00:21]} 11. Bc4 {[%emt 0:06:58]} f5 {[%emt 0:01:37]} 12. Nxe5 {[%emt 0:11:55]} dxe5 {[%emt 0:02:17]} 13. Qh5+ {[%emt 0:00:17]} Kf8 {[%emt 0:01:54]} 14. d6 {[%emt 0:01:29]} Be8 {[%emt 0:01:23]} 15. dxe7+ {[%emt 0:01:03]} Qxe7 {[%emt 0:00:25]} 16. Qf3 {[%emt 0:01:37]} f4 {[%emt 0:01:42]} 17. O-O-O {[%emt 0:02:43]} Bc6 {[%emt 0:01:39]} 18. Qh5 {[%emt 0:01:27]} Qe8 {[%emt 0:04:37]} 19. Qg4 {[%emt 0:01:24]} Bd7 {[%emt 0:02:54]} 20. Qf3 {[%emt 0:01:17]} Bc6 {[%emt 0:00:21]} 21. Qg4 {[%emt 0:02:04]} Bd7 {[%emt 0:01:53]} 22. Qf3 {[%emt 0:01:09]} 1/2-1/2

[Event "44th Chess Olympiad Women 2022"]
[Site "Chennai"]
[Date "2022.08.02"]
[Round "5.62"]
[White "Lyons, Kieran"]
[Black "San Diego, Marie Antoinette"]
[Result "1-0"]
[ECO "C01"]
[WhiteElo "1767"]
[BlackElo "2101"]
[Annotator "NA RC"]
[PlyCount "27"]
[EventDate "2022.07.29"]
[EventType "team-tourn"]
[EventCountry "IND"]
[SourceTitle "playchess.com"]
[Source "ChessBase"]
[SourceQuality "1"]
[WhiteTeam "Fiji"]
[BlackTeam "Philippines"]
[WhiteTeamCountry "FIJ"]
[BlackTeamCountry "PHI"]
[TimeControl "40/5400+30:1800+30"]

1. e4 {[%emt 0:00:02]} e6 {[%emt 0:00:16]} 2. d4 {[%emt 0:00:14]} Nc6 {[%emt 0:00:22]} 3. Nf3 {[%emt 0:00:37]} b6 {[%emt 0:01:01]} 4. Nc3 {[%emt 0:01:15]} Bb7 {[%emt 0:01:40]} 5. d5 {[%emt 0:03:34]} Nce7 {[%emt 0:01:29]} 6. Ne5 {[%emt 0:11:07]} Nf6 {[%emt 0:01:27]} 7. Bc4 {[%emt 0:07:21]} a6 {[%emt 0:01:01]} 8. Qf3 {[%emt 0:10:00]} h6 {[%emt 0:02:31]} 9. Nxf7 {[%emt 0:02:16]} Kxf7 {[%emt 0:02:51]} 10. e5 {[%emt 0:00:08]} g6 {[%emt 0:02:19]} 11. Qxf6+ {[%emt 0:06:43]} Ke8 {[%emt 0:01:13]} 12. dxe6 {[%emt 0:00:56]} Rh7 {[%emt 0:01:10]} 13. Qf7+ {[%emt 0:00:32]} Rxf7 {[%emt 0:00:14]} 14. exf7# {[%emt 0:00:04]} 1-0

[Event "44th Chess Olympiad Women 2022"]
[Site "Chennai"]
[Date "2022.08.02"]
[Round "5.63"]
[White "James, Shemilah"]
[Black "De Souza, Ivana Claudia Eyram"]
[Result "1-0"]
[ECO "C54"]
[WhiteElo "1590"]
[BlackElo "1167"]
[Annotator "NA COMBH"]
[PlyCount "69"]
[EventDate "2022.07.29"]
[EventType "team-tourn"]
[EventCountry "IND"]
[SourceTitle "playchess.com"]
[Source "ChessBase"]
[SourceQuality "1"]
[WhiteTeam "TTO"]
[BlackTeam "Togo"]
[BlackTeamCountry "TOG"]
[TimeControl "40/5400+30:1800+30"]

1. e4 {[%emt 0:00:07]} e5 {[%emt 0:00:07]} 2. Nf3 {[%emt 0:00:06]} Nc6 {[%emt 0:00:10]} 3. Bc4 {[%emt 0:00:20]} Bc5 {[%emt 0:00:16]} 4. c3 {[%emt 0:00:31]} a6 {[%emt 0:01:30]} 5. Bb3 {[%emt 0:00:58]} d6 {[%emt 0:00:49]} 6. d3 {[%emt 0:00:28]} h6 {[%emt 0:01:00]} 7. O-O {[%emt 0:00:41]} Nf6 {[%emt 0:00:37]} 8. Be3 {[%emt 0:00:38]} Ba7 {[%emt 0:01:04]} 9. h3 {[%emt 0:00:19]} O-O {[%emt 0:00:31]} 10. Nbd2 {[%emt 0:00:34]} Be6 {[%emt 0:01:06]} 11. Re1 {[%emt 0:01:04]} Qd7 {[%emt 0:02:37]} 12. Nf1 {[%emt 0:04:22]} Ne7 {[%emt 0:02:02]} 13. Ng3 {[%emt 0:02:07]} Ng6 {[%emt 0:01:22]} 14. Bc2 {[%emt 0:01:31]} c6 {[%emt 0:03:22]} 15. d4 {[%emt 0:00:58]} Qc8 {[%emt 0:04:15]} 16. Qd2 {[%emt 0:10:49]} Nh7 {[%emt 0:25:49]} 17. Nf5 {[%emt 0:10:16]} Bxf5 {[%emt 0:10:04]} 18. exf5 {[%emt 0:00:04]} Nf4 {[%emt 0:22:55]} 19. Bxf4 {[%emt 0:00:34]} exf4 {[%emt 0:00:38]} 20. Qxf4 {[%emt 0:00:05]} Bb8 {[%emt 0:01:59]} 21. Qe3 {[%emt 0:05:54]} Nf6 {[%emt 0:02:28]} 22. Qd3 {[%emt 0:01:12]} Qd7 {[%emt 0:01:35]} 23. Nh2 {[%emt 0:02:08]} Nd5 {[%emt 0:06:17]} 24. f6 {[%emt 0:03:01]} g6 {[%emt 0:02:28]} 25. Qf3 {[%emt 0:02:01]} Kh7 {[%emt 0:03:59]} 26. Be4 {[%emt 0:02:44]} Bc7 {[%emt 0:02:17]} 27. Bxd5 {[%emt 0:01:25]} cxd5 {[%emt 0:00:49]} 28. Re7 {[%emt 0:01:06]} Qc6 {[%emt 0:00:45]} 29. Qe3 {[%emt 0:00:36]} Rae8 {[%emt 0:00:47]} 30. Ng4 {[%emt 0:00:16]} g5 {[%emt 0:00:47]} 31. Qd3+ {[%emt 0:00:24]} Kh8 {[%emt 0:00:34]} 32. Nxh6 {[%emt 0:00:27]} Rxe7 {[%emt 0:00:32]} 33. fxe7 {[%emt 0:00:02]} Kg7 {[%emt 0:00:42]} 34. exf8=Q+ {[%emt 0:00:54]} Kxf8 {[%emt 0:00:19]} 35. Re1 {[%emt 0:01:37]} 1-0

[Event "44th Chess Olympiad Women 2022"]
[Site "Chennai"]
[Date "2022.08.02"]
[Round "5.63"]
[White "Esse, Akua Kosife"]
[Black "Mohammed, Celine Angelina"]
[Result "1/2-1/2"]
[ECO "C50"]
[WhiteElo "1329"]
[BlackElo "1100"]
[Annotator "NA RC COMBH"]
[PlyCount "63"]
[EventDate "2022.07.29"]
[EventType "team-tourn"]
[EventCountry "IND"]
[SourceTitle "playchess.com"]
[Source "ChessBase"]
[SourceQuality "1"]
[WhiteTeam "Togo"]
[BlackTeam "TTO"]
[WhiteTeamCountry "TOG"]
[TimeControl "40/5400+30:1800+30"]

1. e4 {[%emt 0:00:13]} e5 {[%emt 0:00:05]} 2. Nf3 {[%emt 0:00:04]} Nc6 {[%emt 0:00:06]} 3. Bc4 {[%emt 0:00:17]} Bc5 {[%emt 0:00:54]} 4. Nc3 {[%emt 0:01:21]} a6 {[%emt 0:03:43]} 5. O-O {[%emt 0:01:33]} d6 {[%emt 0:01:44]} 6. Na4 {[%emt 0:02:24]} Ba7 {[%emt 0:05:20]} 7. Nc3 {[%emt 0:05:29]} Bg4 {[%emt 0:03:16]} 8. h3 {[%emt 0:00:17]} Bh5 {[%emt 0:00:05]} 9. Be2 {[%emt 0:11:03]} Nf6 {[%emt 0:08:17]} 10. d3 {[%emt 0:13:13]} h6 {[%emt 0:02:54]} 11. Nh4 {[%emt 0:03:47]} Bxe2 {[%emt 0:01:59]} 12. Qxe2 {[%emt 0:01:10]} Nd4 {[%emt 0:02:50]} 13. Qd1 {[%emt 0:00:48]} Nxe4 {[%emt 0:02:12]} 14. Nxe4 {[%emt 0:03:45]} Qxh4 {[%emt 0:00:25]} 15. c3 {[%emt 0:01:30]} Ne6 {[%emt 0:02:11]} 16. Qe2 {[%emt 0:03:50]} f5 {[%emt 0:02:50]} 17. Nd2 {[%emt 0:00:22]} Qg5 {[%emt 0:10:20]} 18. Qf3 {[%emt 0:07:02]} c6 {[%emt 0:06:12]} 19. Nc4 {[%emt 0:01:51]} Qe7 {[%emt 0:06:23]} 20. Qxf5 {[%emt 0:04:13]} Kd7 {[%emt 0:03:16]} 21. Be3 {[%emt 0:01:40]} Rhf8 {[%emt 0:01:15]} 22. Qg4 {[%emt 0:01:59]} Bxe3 {[%emt 0:03:22]} 23. Nxe3 {[%emt 0:00:21]} Rf4 {[%emt 0:03:34]} 24. Qe2 {[%emt 0:04:15]} Raf8 {[%emt 0:01:38]} 25. Nc4 {[%emt 0:05:49]} Kc7 {[%emt 0:02:28]} 26. Qe3 {[%emt 0:00:52]} c5 {[%emt 0:00:46]} 27. a3 {[%emt 0:01:24]} b6 {[%emt 0:02:32]} 28. b4 {[%emt 0:01:09]} R8f6 {[%emt 0:04:11]} 29. Qd2 {[%emt 0:04:36]} Rg6 {[%emt 0:01:32]} 30. Rae1 {[%emt 0:01:03]} Qg5 {[%emt 0:01:17]} 31. g3 {[%emt 0:01:06]} Qf5 {[%emt 0:01:07]} 32. Ne3 {[%emt 0:02:01]} 1/2-1/2

[Event "44th Chess Olympiad Women 2022"]
[Site "Chennai"]
[Date "2022.08.02"]
[Round "5.63"]
[White "Martin, Kayla"]
[Black "Oyenga, Justine Anassika"]
[Result "1-0"]
[ECO "D92"]
[WhiteElo "1138"]
[BlackElo "1223"]
[Annotator "NA RC COMBH"]
[PlyCount "55"]
[EventDate "2022.07.29"]
[EventType "team-tourn"]
[EventCountry "IND"]
[SourceTitle "playchess.com"]
[Source "ChessBase"]
[SourceQuality "1"]
[WhiteTeam "TTO"]
[BlackTeam "Togo"]
[BlackTeamCountry "TOG"]
[TimeControl "40/5400+30:1800+30"]

1. d4 {[%emt 0:00:04]} d5 {[%emt 0:00:20]} 2. c4 {[%emt 0:00:09]} c6 {[%emt 0:00:44]} 3. Nc3 {[%emt 0:00:12]} Nf6 {[%emt 0:00:47]} 4. Bf4 {[%emt 0:00:19]} g6 {[%emt 0:01:30]} 5. Nf3 {[%emt 0:00:38]} Bf5 {[%emt 0:00:25]} 6. e3 {[%emt 0:00:41]} Bg7 {[%emt 0:00:55]} 7. Bd3 {[%emt 0:01:18]} Ne4 {[%emt 0:02:50]} 8. O-O {[%emt 0:03:09]} O-O {[%emt 0:00:25]} 9. Ne5 {[%emt 0:02:50]} Nxc3 {[%emt 0:03:24]} 10. bxc3 {[%emt 0:00:25]} Nd7 {[%emt 0:02:42]} 11. Bxf5 {[%emt 0:01:03]} gxf5 {[%emt 0:00:45]} 12. Qh5 {[%emt 0:01:58]} Nxe5 {[%emt 0:04:05]} 13. Bxe5 {[%emt 0:03:12]} Bxe5 {[%emt 0:02:06]} 14. dxe5 {[%emt 0:00:33]} Kh8 {[%emt 0:00:13]} 15. Qxf5 {[%emt 0:00:40]} dxc4 {[%emt 0:01:28]} 16. f4 {[%emt 0:00:24]} e6 {[%emt 0:00:20]} 17. Qg4 {[%emt 0:00:46]} Rg8 {[%emt 0:00:21]} 18. Qh3 {[%emt 0:00:36]} Qa5 {[%emt 0:01:33]} 19. e4 {[%emt 0:00:39]} Qc5+ {[%emt 0:01:32]} 20. Kh1 {[%emt 0:00:09]} Rad8 {[%emt 0:00:19]} 21. Rf3 {[%emt 0:01:51]} Qb6 {[%emt 0:01:17]} 22. f5 {[%emt 0:02:33]} Qb2 {[%emt 0:00:31]} 23. Raf1 {[%emt 0:00:44]} Rd2 {[%emt 0:04:15]} 24. Rg3 {[%emt 0:09:38]} Rd3 {[%emt 0:05:21]} 25. Rxg8+ {[%emt 0:00:50]} Kxg8 {[%emt 0:00:24]} 26. Qg4+ {[%emt 0:00:17]} Kh8 {[%emt 0:00:22]} 27. f6 {[%emt 0:00:18]} Qf2 {[%emt 0:12:45]} 28. Qg7# {[%emt 0:01:34]} 1-0

[Event "44th Chess Olympiad Women 2022"]
[Site "Chennai"]
[Date "2022.08.02"]
[Round "5.64"]
[White "Saraci, Rinesa"]
[Black "Johnson, Daijah"]
[Result "0-1"]
[ECO "E90"]
[WhiteElo "1494"]
[BlackElo "1480"]
[Annotator "NA RC COMBH"]
[PlyCount "74"]
[EventDate "2022.07.29"]
[EventType "team-tourn"]
[EventCountry "IND"]
[SourceTitle "playchess.com"]
[Source "ChessBase"]
[SourceQuality "1"]
[WhiteTeam "Kosovo"]
[BlackTeam "Bahamas"]
[WhiteTeamCountry "KOS"]
[BlackTeamCountry "BAH"]
[TimeControl "40/5400+30:1800+30"]

1. d4 {[%emt 0:00:06]} Nf6 {[%emt 0:00:10]} 2. c4 {[%emt 0:00:42]} g6 {[%emt 0:00:46]} 3. Nc3 {[%emt 0:00:35]} Bg7 {[%emt 0:00:29]} 4. e4 {[%emt 0:01:07]} d6 {[%emt 0:00:35]} 5. Nf3 {[%emt 0:00:30]} Bg4 {[%emt 0:01:07]} 6. h3 {[%emt 0:01:11]} Bxf3 {[%emt 0:01:36]} 7. Qxf3 {[%emt 0:00:14]} O-O {[%emt 0:02:02]} 8. e5 {[%emt 0:11:11]} dxe5 {[%emt 0:04:39]} 9. dxe5 {[%emt 0:02:05]} Ne8 {[%emt 0:01:13]} 10. Qxb7 {[%emt 0:05:46]} Nd7 {[%emt 0:01:02]} 11. e6 {[%emt 0:17:36]} fxe6 {[%emt 0:13:06]} 12. Qc6 {[%emt 0:07:25]} Bxc3+ {[%emt 0:01:53]} 13. bxc3 {[%emt 0:00:09]} e5 {[%emt 0:11:03]} 14. Bh6 {[%emt 0:08:41]} Rf6 {[%emt 0:03:33]} 15. Qd5+ {[%emt 0:05:12]} Kh8 {[%emt 0:06:47]} 16. Bg5 {[%emt 0:03:30]} Rf5 {[%emt 0:05:24]} 17. Bxe7 {[%emt 0:07:42]} Nef6 {[%emt 0:09:32]} 18. Bxd8 {[%emt 0:02:36]} Nxd5 {[%emt 0:00:11]} 19. cxd5 {[%emt 0:00:16]} Rxd8 {[%emt 0:00:08]} 20. Be2 {[%emt 0:01:44]} Rdf8 {[%emt 0:07:39]} 21. O-O {[%emt 0:01:20]} e4 {[%emt 0:01:54]} 22. c4 {[%emt 0:02:16]} Ne5 {[%emt 0:01:52]} 23. Rab1 {[%emt 0:01:54]} Nd3 {[%emt 0:03:56]} 24. f3 {[%emt 0:02:32]} Nf4 {[%emt 0:03:31]} 25. Bd1 {[%emt 0:01:37]} e3 {[%emt 0:02:47]} 26. Rb2 {[%emt 0:02:04]} Re5 {[%emt 0:03:54]} 27. Be2 {[%emt 0:04:15]} Nxe2+ {[%emt 0:02:15]} 28. Rxe2 {[%emt 0:00:11]} Rf4 {[%emt 0:00:08]} 29. Rc1 {[%emt 0:00:23]} Rd4 {[%emt 0:03:09]} 30. Rcc2 {[%emt 0:01:35]} a6 {[%emt 0:01:46]} 31. g3 {[%emt 0:00:44]} Kg7 {[%emt 0:00:57]} 32. Rc3 {[%emt 0:01:49]} Rd1+ {[%emt 0:02:06]} 33. Kg2 {[%emt 0:00:32]} Rd2 {[%emt 0:00:21]} 34. Rc2 {[%emt 0:00:30]} Rxc2 {[%emt 0:00:21]} 35. Rxc2 {[%emt 0:02:35]} e2 {[%emt 0:00:10]} 36. Rc1 {[%emt 0:00:32]} e1=Q {[%emt 0:00:11]} 37. Rxe1 {[%emt 0:00:02]} Rxe1 {[%emt 0:00:10]} 0-1

[Event "44th Chess Olympiad Women 2022"]
[Site "Chennai"]
[Date "2022.08.02"]
[Round "5.65"]
[White "Nacario, Ruth"]
[Black "Ahmed, Najla"]
[Result "1-0"]
[ECO "D20"]
[WhiteElo "1552"]
[BlackElo "1176"]
[Annotator "NA RC COMBH"]
[PlyCount "52"]
[EventDate "2022.07.29"]
[EventType "team-tourn"]
[EventCountry "IND"]
[SourceTitle "playchess.com"]
[Source "ChessBase"]
[SourceQuality "1"]
[WhiteTeam "GUM"]
[BlackTeam "Brunei"]
[BlackTeamCountry "BRN"]
[TimeControl "40/5400+30:1800+30"]

1. d4 {[%emt 0:00:02]} d5 {[%emt 0:00:09]} 2. c4 {[%emt 0:00:13]} dxc4 {[%emt 0:00:07]} 3. e4 {[%emt 0:00:18]} Nf6 {[%emt 0:03:02]} 4. Nc3 {[%emt 0:00:35]} e6 {[%emt 0:01:09]} 5. Bxc4 {[%emt 0:02:20]} e5 {[%emt 0:19:23]} 6. Nge2 {[%emt 0:08:05]} Be7 {[%emt 0:04:06]} 7. Bg5 {[%emt 0:05:38]} Nbd7 {[%emt 0:06:31]} 8. Qb3 {[%emt 0:12:22]} O-O {[%emt 0:00:57]} 9. O-O-O {[%emt 0:07:03]} Ng4 {[%emt 0:04:55]} 10. Be3 {[%emt 0:05:57]} Bg5 {[%emt 0:01:31]} 11. Rdf1 {[%emt 0:09:09]} exd4 {[%emt 0:12:30]} 12. Nxd4 {[%emt 0:03:04]} Nde5 {[%emt 0:00:26]} 13. Bxg5 {[%emt 0:05:03]} Qxg5+ {[%emt 0:00:10]} 14. Kb1 {[%emt 0:00:50]} Nxc4 {[%emt 0:02:54]} 15. Qxc4 {[%emt 0:00:23]} Qe5 {[%emt 0:03:59]} 16. f4 {[%emt 0:01:22]} Qe7 {[%emt 0:10:14]} 17. Rf3 {[%emt 0:02:07]} Rd8 {[%emt 0:06:20]} 18. h3 {[%emt 0:02:21]} Nf6 {[%emt 0:07:34]} 19. Re1 {[%emt 0:03:26]} Qd7 {[%emt 0:06:10]} 20. Rd1 {[%emt 0:02:25]} Qe7 {[%emt 0:02:26]} 21. Re3 {[%emt 0:01:39]} a6 {[%emt 0:03:03]} 22. Qe2 {[%emt 0:02:37]} Qb4 {[%emt 0:01:50]} 23. Nc2 {[%emt 0:00:50]} Rxd1+ {[%emt 0:00:56]} 24. Qxd1 {[%emt 0:00:19]} Qe7 {[%emt 0:00:51]} 25. e5 {[%emt 0:01:19]} Ne8 {[%emt 0:01:09]} 26. Nd5 {[%emt 0:03:46]} Qd7 {[%emt 0:00:00]} 1-0